bitfinex-derivatives/quotes_BTCF0:USTF0_20251129
["timestamp","ask_amount","ask_price","bid_price","bid_amount"]
[1764423100761,0.9490896,90807.0,90806.0,0.04118531]
[1764423104160,0.9490896,90807.0,90806.0,0.05297323]
[1764423107671,0.9490896,90807.0,90806.0,0.09096323]
[1764423113163,1.1226496,90807.0,90806.0,0.09096323]
[1764423113368,0.9126496,90807.0,90806.0,0.09096323]
[1764423119578,0.9126496,90807.0,90806.0,0.08976323]
[1764423120782,0.68164,90807.0,90806.0,0.08976323]
[1764423122275,0.7051343,90807.0,90806.0,0.08976323]
[1764423128180,0.68164,90807.0,90806.0,0.08976323]
[1764423128384,0.70507402,90807.0,90806.0,0.08976323]
[1764423130380,0.70507402,90807.0,90806.0,0.01406323]
[1764423130583,1.50086402,90807.0,90806.0,0.00227531]
[1764423131573,1.50086402,90807.0,90806.0,0.00027531]
[1764423131779,1.50486402,90807.0,90806.0,0.00027531]
[1764423132188,1.50086402,90807.0,90806.0,0.00027531]
[1764423132493,0.07583,90798.0,90797.0,0.0847586]
[1764423132677,0.83027462,90798.0,90797.0,0.0847586]
[1764423133190,0.58027462,90798.0,90797.0,0.0847586]
[1764423134794,0.58227462,90798.0,90797.0,0.0847586]
[1764423137787,0.93227462,90798.0,90797.0,0.0847586]
[1764423139185,0.92227462,90798.0,90797.0,0.0847586]
[1764423142595,0.8988406,90798.0,90797.0,0.0479686]
[1764423142895,0.8988406,90798.0,90797.0,0.0120486]
[1764423143087,0.8988406,90798.0,90797.0,0.0444886]
[1764423144090,0.8988406,90798.0,90797.0,0.0120486]
[1764423144284,0.9123106,90798.0,90797.0,0.0120486]
[1764423144894,0.8988406,90798.0,90797.0,0.0120486]
[1764423148599,1.7788406,90798.0,90797.0,0.0120486]
[1764423149992,1.7788406,90798.0,90797.0,0.0435986]
[1764423150691,1.7788406,90798.0,90797.0,0.0774686]
[1764423151302,1.7788406,90798.0,90797.0,0.0435986]
[1764423152702,1.7788406,90798.0,90797.0,0.0120486]
[1764423153902,1.7909106,90798.0,90797.0,0.0120486]
[1764423155100,1.7788406,90798.0,90797.0,0.0120486]
[1764423155302,1.80231589,90798.0,90797.0,0.0774686]
[1764423156402,1.80231589,90798.0,90797.0,0.0435986]
[1764423157099,1.80231589,90798.0,90797.0,0.0774686]
[1764423159007,1.80231589,90798.0,90797.0,0.0120486]
[1764423160109,1.80231589,90798.0,90797.0,0.0435986]
[1764423164507,1.80231589,90798.0,90797.0,0.0120486]
[1764423165212,1.80231589,90798.0,90797.0,0.0435986]
[1764423166115,1.80231589,90798.0,90797.0,0.0774686]
[1764423166614,0.06556,90796.0,90795.0,0.05907079]
[1764423166803,0.076571,90795.0,90794.0,0.05907079]
[1764423167007,0.91004629,90795.0,90794.0,0.09062079]
[1764423167201,1.79004629,90795.0,90794.0,0.09062079]
[1764423167406,1.79004629,90795.0,90794.0,0.12449079]
[1764423168109,1.79004629,90795.0,90794.0,0.13646068]
[1764423168709,1.79004629,90795.0,90794.0,0.07738989]
[1764423169416,1.79204629,90795.0,90794.0,0.07738989]
[1764423175123,1.79204629,90795.0,90794.0,0.04351989]
[1764423175328,1.79204629,90795.0,90794.0,0.01196989]
[1764423175535,1.79204629,90795.0,90794.0,0.03155]
[1764423176536,1.79204629,90795.0,90794.0,0.06542]
[1764423180033,1.79204629,90795.0,90794.0,0.12449079]
[1764423182535,1.79204629,90795.0,90794.0,0.06542]
[1764423182940,1.78103529,90795.0,90794.0,0.06542]
[1764423190339,0.20112398,90810.0,90809.0,0.06122]
[1764423190542,0.51479187,90810.0,90809.0,0.06122]
[1764423191536,0.51679187,90810.0,90809.0,0.06122]
[1764423192443,0.4933592,90810.0,90809.0,0.06122]
[1764423194247,0.48235,90810.0,90809.0,0.06122]
[1764423194743,0.48135,90810.0,90809.0,0.06122]
[1764423196445,0.48035,90810.0,90809.0,0.06122]
[1764423196642,0.48035,90810.0,90809.0,0.06222]
[1764423197249,0.48035,90810.0,90809.0,0.07368834]
[1764423203749,0.41035,90810.0,90809.0,0.07368834]
[1764423208555,0.41035,90810.0,90809.0,0.43448834]
[1764423212150,0.4213592,90810.0,90809.0,0.43448834]
[1764423212354,0.4613592,90810.0,90809.0,0.43448834]
[1764423212955,0.45035,90810.0,90809.0,0.43448834]
[1764423213550,0.45035,90810.0,90809.0,0.43348834]
[1764423213751,0.45035,90810.0,90809.0,0.43448834]
[1764423221963,0.45035,90810.0,90809.0,0.07368834]
[1764423222155,0.45035,90810.0,90809.0,0.43448834]
[1764423223366,0.47363009,90810.0,90809.0,0.43448834]
[1764423224655,0.47363009,90810.0,90809.0,0.43348834]
[1764423225263,0.88621009,90810.0,90809.0,0.01146834]
[1764423225465,0.88621009,90810.0,90795.0,0.01882]
[1764423225466,0.05847,90802.0,90801.0,0.12930878]
[1764423225667,0.44175454,90802.0,90801.0,0.13711858]
[1764423226269,0.41847,90802.0,90801.0,0.07779]
[1764423227261,0.41847,90802.0,90801.0,0.07879]
[1764423227856,0.41847,90802.0,90801.0,0.07779]
[1764423240668,0.41847,90802.0,90801.0,0.05897]
[1764423241478,0.41847,90802.0,90801.0,0.02979]
[1764423241683,0.0525903,90801.0,90800.0,0.05932858]
[1764423241871,0.0525903,90801.0,90798.0,0.0965209]
[1764423241872,0.04158,90799.0,90798.0,0.0965209]
[1764423242071,0.51158,90799.0,90798.0,0.11041858]
[1764423242384,0.51158,90799.0,90798.0,0.08492858]
[1764423242573,0.85158,90799.0,90798.0,0.07033918]
[1764423242970,0.85158,90799.0,90798.0,0.06032858]
[1764423243170,0.85158,90799.0,90798.0,0.08592858]
[1764423243474,0.85158,90799.0,90798.0,0.08492858]
[1764423244774,0.85158,90799.0,90798.0,0.11041858]
[1764423245173,0.85158,90799.0,90798.0,0.05109]
[1764423246083,0.85158,90799.0,90798.0,0.0621006]
[1764423246269,0.85158,90799.0,90798.0,0.05109]
[1764423246472,0.85158,90799.0,90798.0,0.06834]
[1764423247180,0.85158,90799.0,90798.0,0.0793506]
[1764423248385,0.60158,90799.0,90798.0,0.06834]
[1764423249888,0.47158,90799.0,90798.0,0.06834]
[1764423250185,0.47158,90799.0,90798.0,0.12766858]
[1764423254194,0.47158,90799.0,90798.0,0.06834]
[1764423254590,0.0110095,90808.0,90798.0,0.06834]
[1764423254791,0.39158,90808.0,90807.0,0.06834]
[1764423255906,0.39158,90808.0,90807.0,0.06934]
[1764423260398,0.39158,90808.0,90807.0,0.08087331]
[1764423264109,0.35,90808.0,90807.0,0.08087331]
[1764423265898,0.0303651,90816.0,90815.0,0.04943]
[1764423266103,0.0303651,90816.0,90815.0,0.48045329]
[1764423267215,0.0303651,90816.0,90815.0,0.4212386]
[1764423267922,0.0323651,90816.0,90815.0,0.4212386]
[1764423268914,0.0303651,90816.0,90815.0,0.4212386]
[1764423269106,0.0303651,90816.0,90815.0,0.4222386]
[1764423271910,0.0152651,90816.0,90815.0,0.4222386]
[1764423273017,0.0280451,90816.0,90815.0,0.4222386]
[1764423274809,0.3880451,90816.0,90815.0,0.4222386]
[1764423281217,0.3880451,90816.0,90815.0,0.0614386]
[1764423281418,0.3880451,90816.0,90815.0,0.4222386]
[1764423282714,0.3880451,90816.0,90815.0,0.48145329]
[1764423283421,0.3880451,90816.0,90815.0,0.4222386]
[1764423284725,0.0280451,90816.0,90815.0,0.4222386]
[1764423301426,0.0001651,90816.0,90815.0,0.4222386]
[1764423303937,0.0242936,90816.0,90815.0,0.41123]
[1764423304237,0.46778654,90816.0,90815.0,0.3618]
[1764423304838,0.46778654,90816.0,90815.0,0.38369]
[1764423305039,0.46778654,90816.0,90815.0,0.02189]
[1764423305241,0.46878654,90816.0,90815.0,0.02189]
[1764423305736,0.46978654,90816.0,90815.0,0.02189]
[1764423306632,0.47078654,90816.0,90815.0,0.02189]
[1764423310537,0.0241291,90811.0,90810.0,0.05808]
[1764423310738,0.4441291,90811.0,90810.0,0.05808]
[1764423311045,0.4441291,90811.0,90810.0,0.02189]
[1764423311544,0.4441291,90811.0,90810.0,0.04355]
[1764423311736,0.4451291,90811.0,90810.0,0.04355]
[1764423312636,0.46858404,90811.0,90810.0,0.04355]
[1764423313242,0.4451291,90811.0,90810.0,0.04355]
[1764423315432,0.0241294,90808.0,90807.0,0.01153331]
[1764423315637,0.01312,90807.0,90806.0,0.00016519]
[1764423315837,0.78737035,90807.0,90806.0,0.00016519]
[1764423317242,0.0241305,90799.0,90798.0,0.40435]
[1764423317441,0.01312,90797.0,90796.0,0.02189]
[1764423317642,0.43312,90797.0,90796.0,0.02189]
[1764423319648,0.43312,90797.0,90796.0,0.04355]
[1764423320946,0.43312,90797.0,90791.0,0.00013321]
[1764423320947,0.01312,90792.0,90791.0,0.00013321]
[1764423321150,0.43312,90792.0,90791.0,0.00013321]
[1764423321449,0.43312,90792.0,90791.0,0.02202321]
[1764423321654,0.43312,90792.0,90791.0,0.04368321]
[1764423323745,0.43312,90792.0,90791.0,0.04468321]
[1764423333375,0.18312,90792.0,90791.0,0.04468321]
[1764423334776,0.37312,90792.0,90791.0,0.04468321]
[1764423338668,0.37312,90792.0,90791.0,0.00113321]
[1764423339276,0.37312,90792.0,90791.0,0.02374321]
[1764423340573,0.5466,90792.0,90791.0,0.04702321]
[1764423345178,0.57010708,90792.0,90791.0,0.04702321]
[1764423347076,0.0241319,90788.0,90787.0,9e-08]
[1764423347276,0.0241344,90767.0,90766.0,0.36107544]
[1764423347482,0.5876144,90767.0,90766.0,0.40696544]
[1764423348079,0.58770676,90767.0,90766.0,0.40696544]
[1764423348679,0.58770676,90767.0,90766.0,0.40896544]
[1764423349985,0.33770676,90767.0,90766.0,0.40896544]
[1764423350282,0.19114676,90767.0,90766.0,0.40896544]
[1764423350481,0.19770676,90767.0,90766.0,0.40896544]
[1764423352086,0.62770676,90767.0,90766.0,0.40896544]
[1764423352388,0.62770676,90767.0,90766.0,0.36307544]
[1764423353985,0.62770676,90767.0,90766.0,0.38568544]
[1764423355088,0.62770676,90767.0,90766.0,0.40896544]
[1764423363990,1.50770676,90767.0,90766.0,0.40896544]
[1764423364487,1.07770676,90767.0,90766.0,0.40896544]
[1764423364794,1.27770676,90767.0,90766.0,0.40896544]
[1764423365092,1.49770676,90767.0,90766.0,0.40896544]
[1764423370496,1.49970676,90767.0,90766.0,0.40696544]
[1764423373292,1.17662676,90767.0,90766.0,0.40696544]
[1764423374498,1.17462676,90767.0,90766.0,0.40696544]
[1764423375102,1.16461236,90767.0,90766.0,0.40696544]
[1764423376398,1.18847071,90767.0,90766.0,0.40696544]
[1764423378598,0.90495071,90767.0,90766.0,0.40696544]
[1764423378799,0.881,90767.0,90766.0,0.40696544]
[1764423378994,0.001,90767.0,90766.0,0.40696544]
[1764423379904,0.00105613,90767.0,90766.0,0.40696544]
[1764423380105,5.613e-05,90767.0,90766.0,0.40696544]
[1764423380305,5.613e-05,90767.0,90766.0,0.40896544]
[1764423405737,0.04262613,90767.0,90766.0,0.40896544]
[1764423406336,0.02139613,90767.0,90766.0,0.40896544]
[1764423406838,0.02139613,90767.0,90766.0,0.40696544]
[1764423407043,0.02139613,90767.0,90766.0,0.40896544]
[1764423407936,0.02139613,90767.0,90766.0,0.40696544]
[1764423408140,0.02139613,90767.0,90766.0,0.40896544]
[1764423410537,0.02139613,90767.0,90766.0,0.40696544]
[1764423410839,0.02139613,90767.0,90766.0,0.40896544]
[1764423411238,0.02139613,90767.0,90766.0,0.40796544]
[1764423411630,5.613e-05,90767.0,90766.0,0.40796544]
[1764423421243,0.02215613,90767.0,90766.0,0.40796544]
[1764423422031,0.04547613,90767.0,90766.0,0.40796544]
[1764423422236,0.43547613,90767.0,90766.0,0.40796544]
[1764423422437,0.45921476,90767.0,90766.0,0.40796544]
[1764423423244,0.43547613,90767.0,90766.0,0.40696544]
[1764423423928,0.43647613,90767.0,90766.0,0.40696544]
[1764423426439,0.43647613,90767.0,90766.0,0.04616544]
[1764423428842,0.43647613,90767.0,90766.0,0.00027544]
[1764423431444,0.46016371,90767.0,90766.0,0.00027544]
[1764423432242,0.43647613,90767.0,90766.0,0.00027544]
[1764423437142,0.43647613,90767.0,90766.0,0.02178544]
[1764423439343,0.43647613,90767.0,90766.0,0.04382544]
[1764423440049,0.39647613,90767.0,90766.0,0.04382544]
[1764423440445,0.15647613,90767.0,90766.0,0.04382544]
[1764423443150,0.04647613,90767.0,90766.0,0.04382544]
[1764423443345,0.37647613,90767.0,90766.0,0.04382544]
[1764423445259,0.4001622,90767.0,90766.0,0.04382544]
[1764423449563,0.5736822,90767.0,90766.0,0.04382544]
[1764423454680,1.4136822,90767.0,90766.0,0.04382544]
[1764423480892,1.4136822,90767.0,90766.0,0.00027544]
[1764423481801,1.41375876,90767.0,90766.0,0.00027544]
[1764423481993,0.0550451,90761.0,90760.0,0.3608]
[1764423482195,0.61228773,90761.0,90760.0,0.3608]
[1764423482393,0.0550455,90758.0,90757.0,0.00016519]
[1764423482605,1.28880813,90758.0,90757.0,0.00016519]
[1764423483403,0.0667165,90750.0,90749.0,0.3608]
[1764423483593,0.5167165,90750.0,90749.0,0.3608]
[1764423484494,0.5167165,90750.0,90749.0,0.3618]
[1764423485202,0.5167165,90750.0,90749.0,0.3658]
[1764423487802,0.5057,90750.0,90749.0,0.38762]
[1764423488002,0.5057,90750.0,90749.0,0.39885364]
[1764423488199,0.5057,90750.0,90749.0,0.37703364]
[1764423490703,0.5057,90750.0,90749.0,0.3658]
[1764423494106,0.5057,90750.0,90749.0,0.005]
[1764423494303,0.52954946,90750.0,90749.0,0.005]
[1764423495498,0.5057,90750.0,90749.0,0.005]
[1764423495903,0.04403,90748.0,90747.0,0.01117209]
[1764423496102,0.04403,90741.0,90740.0,0.04295064]
[1764423496301,0.63755,90741.0,90740.0,0.04295064]
[1764423496607,0.31755,90741.0,90740.0,0.04295064]
[1764423497110,0.3285676,90741.0,90740.0,0.04295064]
[1764423497504,0.3285676,90741.0,90740.0,0.04895064]
[1764423498906,0.6585676,90741.0,90740.0,0.04895064]
[1764423499108,0.6585676,90741.0,90740.0,0.05989208]
[1764423499807,0.2285676,90741.0,90740.0,0.05989208]
[1764423500010,0.4285676,90741.0,90740.0,0.05989208]
[1764423502911,0.41755,90741.0,90740.0,0.05989208]
[1764423503099,0.17352,90741.0,90740.0,0.05989208]
[1764423503305,0.0110171,90745.0,90744.0,0.05709]
[1764423503501,0.0510171,90745.0,90744.0,0.05709]
[1764423504513,0.0510171,90745.0,90744.0,0.06009]
[1764423505306,0.0729571,90745.0,90744.0,0.06009]
[1764423506402,5.613e-05,90748.0,90747.0,0.05733]
[1764423507706,5.613e-05,90748.0,90747.0,0.05933]
[1764423511710,0.8510156,90758.0,90756.0,0.05705]
[1764423512305,0.8510156,90758.0,90756.0,0.0680657]
[1764423513409,0.8510156,90758.0,90756.0,0.05705]
[1764423513608,0.04500529,90757.0,90756.0,0.05705]
[1764423517919,0.04500529,90757.0,90756.0,0.06843082]
[1764423525927,0.00016529,90757.0,90756.0,0.06843082]
[1764423536141,0.02282529,90757.0,90756.0,0.06843082]
[1764423536533,0.02282529,90757.0,90756.0,0.42923082]
[1764423540244,0.00016529,90757.0,90756.0,0.42923082]
[1764423541837,0.00016529,90757.0,90756.0,0.52923082]
[1764423542038,0.3718141,90770.0,90769.0,0.04424]
[1764423542346,0.47909002,90770.0,90769.0,0.04424]
[1764423542533,0.50194002,90770.0,90769.0,0.04424]
[1764423543047,1.31194002,90770.0,90769.0,0.0552542]
[1764423544148,1.2877541,90770.0,90769.0,0.0552542]
[1764423544443,1.2917541,90770.0,90769.0,0.0552542]
[1764423547148,0.9309541,90770.0,90769.0,0.0552542]
[1764423547352,0.9289541,90770.0,90769.0,0.0552542]
[1764423547946,0.9289541,90770.0,90769.0,0.06672766]
[1764423555053,0.9289541,90770.0,90769.0,0.05571346]
[1764423559060,0.928954,90770.0,90769.0,0.05571346]
[1764423565871,0.91794,90770.0,90769.0,0.05571346]
[1764423566168,0.92898,90770.0,90769.0,0.05571346]
[1764423567059,0.939994,90770.0,90769.0,0.05571346]
[1764423569271,0.96412981,90770.0,90769.0,0.05571346]
[1764423574370,0.96212981,90770.0,90769.0,0.05571346]
[1764423574564,0.96412981,90770.0,90769.0,0.05571346]
[1764423579680,0.96421915,90770.0,90769.0,0.05571346]
[1764423584677,0.95320515,90770.0,90769.0,0.05571346]
[1764423592781,0.95320515,90770.0,90769.0,0.03366346]
[1764423602489,0.88216515,90770.0,90769.0,0.05608346]
[1764423602685,0.85794,90770.0,90769.0,0.05608346]
[1764423603393,0.85794,90770.0,90769.0,0.13531743]
[1764423603591,0.85794,90770.0,90769.0,0.23531743]
[1764423604678,0.85594,90770.0,90769.0,0.23631743]
[1764423605291,0.85594,90770.0,90769.0,0.15708346]
[1764423614100,0.85594,90770.0,90769.0,0.05708346]
[1764423615003,0.86895,90770.0,90769.0,0.05708346]
[1764423617796,0.86895,90770.0,90769.0,0.41788346]
[1764423618901,0.86895,90770.0,90769.0,0.51788346]
[1764423623204,0.86895,90770.0,90769.0,0.59711743]
[1764423627306,0.86895,90770.0,90769.0,0.51788346]
[1764423632511,0.86895,90770.0,90769.0,0.15708346]
[1764423632702,0.86895,90770.0,90769.0,0.51788346]
[1764423635910,0.86895,90770.0,90769.0,0.15708346]
[1764423636110,0.86895,90770.0,90769.0,0.51788346]
[1764423637714,0.85594,90770.0,90769.0,0.51788346]
[1764423644412,0.85594,90770.0,90769.0,0.41788346]
[1764423644616,0.85594,90770.0,90769.0,0.05708346]
[1764423644818,0.85594,90770.0,90769.0,0.41788346]
[1764423646620,0.85594,90770.0,90769.0,0.05708346]
[1764423646813,0.85594,90770.0,90769.0,0.41788346]
[1764423647221,0.86961,90770.0,90769.0,0.41788346]
[1764423647623,0.86961,90770.0,90769.0,0.05708346]
[1764423647823,0.86961,90770.0,90769.0,0.41788346]
[1764423649435,0.86961,90770.0,90769.0,0.05708346]
[1764423649622,0.86961,90770.0,90769.0,0.41788346]
[1764423650732,0.86961,90770.0,90769.0,0.54671346]
[1764423650924,1.27961,90770.0,90769.0,0.37327346]
[1764423653426,1.28261,90770.0,90769.0,0.37227346]
[1764423653728,0.94261,90770.0,90769.0,0.37227346]
[1764423654421,1.22261,90770.0,90769.0,0.37227346]
[1764423655823,0.97261,90770.0,90769.0,0.37227346]
[1764423657319,1.20261,90770.0,90769.0,0.37227346]
[1764423658133,1.20261,90770.0,90769.0,0.30227346]
[1764423660531,1.20261,90770.0,90769.0,0.31352389]
[1764423666032,0.0241351,90761.0,90760.0,0.00016529]
[1764423666240,0.4541351,90761.0,90760.0,0.00016529]
[1764423666740,1.2641351,90761.0,90760.0,0.00016529]
[1764423667140,1.2651351,90761.0,90760.0,0.00016529]
[1764423668237,1.2651351,90761.0,90760.0,0.04434529]
[1764423669144,0.9951351,90761.0,90760.0,0.04434529]
[1764423669845,0.9951351,90761.0,90760.0,0.05539272]
[1764423672148,0.98412,90761.0,90760.0,0.05539272]
[1764423676450,0.9951351,90761.0,90760.0,0.05539272]
[1764423677264,0.98412,90761.0,90760.0,0.05539272]
[1764423681752,0.82412,90761.0,90760.0,0.05539272]
[1764423683151,0.811,90761.0,90760.0,0.05539272]
[1764423683554,0.81756,90761.0,90760.0,0.05539272]
[1764423684159,0.82412,90761.0,90760.0,0.15539272]
[1764423684964,0.82412,90761.0,90760.0,0.05539272]
[1764423688468,0.82412,90761.0,90760.0,0.41619272]
[1764423696973,0.82412,90761.0,90760.0,0.05539272]
[1764423697173,0.82412,90761.0,90760.0,0.41619272]
[1764423698169,0.82412,90761.0,90760.0,0.42962272]
[1764423698964,0.82412,90761.0,90760.0,0.06882272]
[1764423699160,0.82412,90761.0,90760.0,0.42962272]
[1764423705376,0.82412,90761.0,90760.0,0.60306272]
[1764423706182,0.82412,90761.0,90760.0,0.6822913]
[1764423711071,0.82412,90761.0,90760.0,0.60306272]
[1764423714980,0.82412,90761.0,90760.0,0.59780816]
[1764423731988,0.82412,90761.0,90760.0,0.23700816]
[1764423732193,0.82412,90761.0,90760.0,0.59780816]
[1764423732690,0.82412,90761.0,90760.0,0.6770288]
[1764423735982,0.82412,90761.0,90760.0,0.7770288]
[1764423736387,0.82412,90761.0,90760.0,0.4162288]
[1764423736587,0.82412,90761.0,90760.0,0.7770288]
[1764423737397,0.82412,90761.0,90760.0,0.6770288]
[1764423738588,0.82312,90761.0,90760.0,0.6770288]
[1764423742804,0.82312,90761.0,90760.0,0.59780816]
[1764423745596,0.17344,90775.0,90774.0,0.04464]
[1764423745809,0.22055809,90775.0,90774.0,0.04464]
[1764423746300,0.8333,90775.0,90774.0,0.04464]
[1764423746502,0.8333,90775.0,90774.0,0.05759]
[1764423746694,0.8633,90775.0,90774.0,0.05759]
[1764423746895,0.8333,90775.0,90774.0,0.05759]
[1764423747802,0.8373,90775.0,90774.0,0.05759]
[1764423750203,0.82565,90775.0,90774.0,0.05759]
[1764423750509,0.814,90775.0,90774.0,0.23680332]
[1764423750707,0.814,90775.0,90774.0,0.15759]
[1764423751502,0.81,90775.0,90774.0,0.15959]
[1764423752303,0.81,90775.0,90774.0,0.1739269]
[1764423752502,0.81,90775.0,90774.0,0.3473269]
[1764423752803,0.81,90775.0,90774.0,0.42637101]
[1764423753006,0.0110112,90794.0,90778.0,0.0689731]
[1764423753207,0.0343112,90794.0,90793.0,0.0219]
[1764423753506,1.09808037,90794.0,90793.0,0.0219]
[1764423754905,0.8363,90794.0,90793.0,0.0560213]
[1764423756308,0.0263,90794.0,90793.0,0.0560213]
[1764423756503,0.01465,90794.0,90793.0,0.0560213]
[1764423756806,0.01165,90794.0,90793.0,0.0560213]
[1764423757007,0.8333,90802.0,90801.0,0.0689703]
[1764423761800,0.8333,90802.0,90801.0,0.08344194]
[1764423762810,0.8333,90802.0,90801.0,0.44424194]
[1764423764698,0.8333,90802.0,90801.0,0.43323164]
[1764423764904,1.2433,90802.0,90801.0,0.37527164]
[1764423768312,1.2443,90802.0,90801.0,0.37527164]
[1764423768912,1.2443,90802.0,90801.0,0.01447164]
[1764423769115,1.221,90802.0,90796.0,0.0110108]
[1764423769306,0.0110109,90796.0,90793.0,0.0110112]
[1764423769507,0.0233,90794.0,90793.0,0.0329112]
[1764423770314,0.0233,90794.0,90793.0,0.0560212]
[1764423770907,0.0233,90794.0,90793.0,0.0570212]
[1764423771417,0.0233,90794.0,90793.0,0.0560212]
[1764423775807,0.0533,90794.0,90793.0,0.0560212]
[1764423776002,0.0233,90794.0,90793.0,0.0110112]
[1764423776406,0.0233,90794.0,90793.0,0.0329112]
[1764423776620,0.0233,90794.0,90793.0,0.0560212]
[1764423776917,0.0243,90794.0,90793.0,0.0560212]
[1764423778916,0.0653113,90794.0,90792.0,0.02528234]
[1764423779224,0.0233,90793.0,90792.0,0.0343013]
[1764423779418,0.0233,90793.0,90792.0,0.0706813]
[1764423780620,0.0243,90793.0,90792.0,0.0706813]
[1764423782523,0.0543,90793.0,90792.0,0.0706813]
[1764423782818,0.0243,90793.0,90792.0,0.0706813]
[1764423785320,0.0233,90791.0,90790.0,0.37475507]
[1764423785516,0.4233,90791.0,90790.0,0.43407146]
[1764423785917,0.4233,90791.0,90790.0,0.45736146]
[1764423786412,0.4233,90791.0,90790.0,0.39804507]
[1764423786613,0.4243,90791.0,90790.0,0.39804507]
[1764423787826,0.4253,90791.0,90790.0,0.43151667]
[1764423788229,0.4253,90791.0,90790.0,0.42050507]
[1764423792821,0.4253,90791.0,90790.0,0.37475507]
[1764423794424,0.4253,90791.0,90790.0,0.39804507]
[1764423796030,0.4253,90791.0,90790.0,0.42050507]
[1764423800227,0.4253,90791.0,90790.0,0.05970507]
[1764423801732,0.1253,90791.0,90790.0,0.05970507]
[1764423807636,0.0253,90791.0,90790.0,0.05970507]
[1764423808736,0.0553,90791.0,90790.0,0.05970507]
[1764423811330,0.07883135,90791.0,90790.0,0.05970507]
[1764423817540,0.88883135,90791.0,90790.0,0.05970507]
[1764423820842,1.24883135,90791.0,90790.0,0.05970507]
[1764423823229,1.24883135,90791.0,90790.0,0.07247507]
[1764423826632,0.85883135,90791.0,90790.0,0.07247507]
[1764423847162,0.812,90791.0,90790.0,0.07247507]
[1764423847556,0.812,90791.0,90790.0,0.17247507]
[1764423848455,0.8343,90791.0,90790.0,0.07247507]
[1764423852154,0.82265,90791.0,90790.0,0.07247507]
[1764423852354,0.8343,90791.0,90790.0,0.07247507]
[1764423853561,0.8333,90791.0,90790.0,0.07247507]
[1764423856666,0.81,90791.0,90790.0,0.07247507]
[1764423857661,0.8333,90791.0,90790.0,0.07247507]
[1764423862164,0.8333,90791.0,90790.0,0.43327507]
[1764423876274,0.8333,90791.0,90790.0,0.51231918]
[1764423879173,0.8333,90791.0,90790.0,0.43327507]
[1764423884384,0.8333,90791.0,90790.0,0.60663507]
[1764423885580,0.00536531,90806.0,90802.0,0.0690802]
[1764423885581,0.02346529,90803.0,90802.0,0.0690802]
[1764423885788,0.04698766,90803.0,90802.0,0.0690802]
[1764423885986,0.0233,90802.0,90801.0,0.3608]
[1764423886189,0.0633,90802.0,90801.0,0.3608]
[1764423887089,0.0233,90802.0,90801.0,0.3608]
[1764423887285,0.0633,90802.0,90801.0,0.3608]
[1764423887583,0.0633,90802.0,90801.0,0.38316]
[1764423888393,0.0233,90802.0,90801.0,0.38316]
[1764423888690,0.0263,90802.0,90801.0,0.38316]
[1764423888893,0.0263,90802.0,90801.0,0.40624]
[1764423891889,0.0263,90802.0,90801.0,0.41964144]
[1764423892886,0.48980999,90802.0,90801.0,0.37420144]
[1764423895386,0.48980999,90802.0,90801.0,0.01340144]
[1764423895587,0.0233,90798.0,90797.0,0.09265184]
[1764423895785,0.3933,90798.0,90797.0,0.09265184]
[1764423895988,0.3933,90798.0,90797.0,0.11573184]
[1764423897098,0.3933,90798.0,90797.0,0.1290857]
[1764423897487,0.3953,90798.0,90797.0,0.1290857]
[1764423898498,0.3933,90798.0,90797.0,0.1290857]
[1764423898692,0.3953,90798.0,90797.0,0.1290857]
[1764423900501,0.3953,90798.0,90797.0,0.118075]
[1764423900692,0.372,90798.0,90797.0,0.118075]
[1764423900900,0.002,90798.0,90797.0,0.05879386]
[1764423901199,0.07848001,90831.0,90819.0,0.04367]
[1764423901407,0.7999866,90831.0,90830.0,0.04367]
[1764423901596,0.42248314,90831.0,90830.0,0.04367]
[1764423902100,0.79248314,90831.0,90830.0,0.0214]
[1764423902301,0.02818,90825.0,90824.0,0.0674775]
[1764423903009,0.44818,90825.0,90824.0,0.0674775]
[1764423903198,0.09818,90825.0,90824.0,0.0674775]
[1764423903398,0.02818,90825.0,90824.0,0.0674775]
[1764423904307,0.02918,90825.0,90824.0,0.0674775]
[1764423904904,0.03218,90825.0,90824.0,0.0674775]
[1764423905907,0.46218,90825.0,90824.0,0.05647]
[1764423906500,0.46218,90825.0,90824.0,0.06937603]
[1764423907908,0.46218,90825.0,90824.0,0.08038353]
[1764423910610,0.46218,90825.0,90824.0,0.44118353]
[1764423911311,0.46218,90825.0,90824.0,0.01290603]
[1764423911513,0.02818,90822.0,90821.0,0.0438352]
[1764423911811,0.40818,90822.0,90821.0,0.0438352]
[1764423913298,0.40818,90822.0,90821.0,0.0001652]
[1764423913505,0.41118,90822.0,90821.0,0.0001652]
[1764423913810,0.0391892,90810.0,90809.0,0.04367]
[1764423914018,0.3491892,90810.0,90809.0,0.04367]
[1764423916411,0.3511892,90810.0,90809.0,0.04367]
[1764423916615,0.02818,90809.0,90808.0,0.01294117]
[1764423916916,0.02818,90806.0,90805.0,0.04367]
[1764423917112,0.44818,90806.0,90805.0,0.04367]
[1764423919507,0.45018,90806.0,90805.0,0.04367]
[1764423923520,0.44818,90806.0,90805.0,0.04367]
[1764423924222,0.45018,90806.0,90805.0,0.04367]
[1764423927531,0.45018,90806.0,90805.0,0.0214]
[1764423928128,0.45018,90806.0,90805.0,0.04377]
[1764423930231,0.45018,90806.0,90800.0,0.08323915]
[1764423930232,0.0391903,90801.0,90800.0,0.0234852]
[1764423930417,0.0283452,90819.0,90818.0,0.04569]
[1764423930620,0.05189407,90819.0,90818.0,0.40649]
[1764423930825,0.0283452,90819.0,90818.0,0.40649]
[1764423933031,0.0293452,90819.0,90818.0,0.40649]
[1764423936433,0.0293452,90819.0,90818.0,0.04569]
[1764423938932,0.0293452,90819.0,90818.0,0.05829189]
[1764423939240,0.0011652,90819.0,90818.0,0.05829189]
[1764423941440,0.0152552,90819.0,90818.0,0.05829189]
[1764423942835,0.0011652,90819.0,90818.0,0.05829189]
[1764423943942,0.0152552,90819.0,90818.0,0.05829189]
[1764423946941,0.0293452,90819.0,90818.0,0.05829189]
[1764423950944,0.0152552,90819.0,90818.0,0.05829189]
[1764423953848,0.0011652,90819.0,90818.0,0.05829189]
[1764423955741,0.0152552,90819.0,90818.0,0.05829189]
[1764423959446,0.0011652,90819.0,90818.0,0.05829189]
[1764423960150,0.0011652,90819.0,90818.0,0.11755544]
[1764423960348,0.37489,90831.0,90830.0,0.0546868]
[1764423960542,0.38423148,90831.0,90830.0,0.0546868]
[1764423961050,0.41241148,90831.0,90830.0,0.0546868]